[Event "Budapest One Week IM-A 03-2025"]
[Site "Budapest"]
[Date "2025.03.19"]
[Round "5.1"]
[White "Tscheuschner, Georg"]
[Black "Turzo, Attila"]
[Result "1/2-1/2"]
[Annotator "TA"]
[ECO "A11"]
[WhiteElo "2236"]
[BlackElo "2272"]
[PlyCount "96"]
[EventDate "2025.03.17"]
[EventType "tourn"]
[EventCountry "HUN"]
[SourceTitle "playchess.com"]
[Source "ChessBase"]
[SourceQuality "1"]
[TimeControl "5400+30"]

{[%evp 9,96,21,40,26,31,13,151,137,161,171,160,173,170,151,161,149,146,148,165,181,311,308,265,272,431,430,397,317,334,312,319,108,112,109,106,123,113,97,103,83,95,18,47,47,35,42,55,65,65,14,37,20,12,8,51,33,29,29,75,72,63,56,59,60,72,54,41,25,21,25,1573,35,35,35,35,35,35,35,35,35,42,20,26,8,16,0,20,0,18]} 1. c4 {[%emt 0:00:03]} c6 {[%emt 0:00:17]} 2. Nf3 {[%emt 0:00:11]} d5 {[%emt 0:00:07]} 3. e3 {[%emt 0:00:05]} Nf6 {[%emt 0:00:11]} 4. Nc3 {[%emt 0:00:07]} a6 {[%emt 0:01:03]} 5. Be2 {[%emt 0:02:18]} Bf5 {[%emt 0:01:04]} 6. Qb3 {[%emt 0:01:20] A11: English Opening: 1...c6.} Ra7 {[%emt 0:00:09]} 7. d3 {[%emt 0:00:23]} h6 $146 {[%emt 0:00:22]} (7... e6 $11) (7... e6 8. e4 dxe4 9. dxe4 Nxe4 10. Nxe4 Bxe4 11. Qe3 Bxf3 12. Qxa7 Bxg2 13. Rg1 Bb4+ {0-1 Brilej,J (2280)-Iskusnyh,S (2440) Titled Tuesday intern op 06th Aug Early blitz 2024 (10)}) 8. cxd5 $16 {[%emt 0:21:31] White is clearly better.} cxd5 {[%emt 0:00:10] [#]} 9. e4 $1 {[%emt 0:00:13][%mdl 512]} dxe4 {[%emt 0:02:06]} 10. dxe4 {[%emt 0:00:04]} Be6 {[%emt 0:01:15]} 11. Qa3 {[%emt 0:06:49]} Nc6 {[%emt 0:05:51]} 12. Be3 {[%emt 0:01:46]} Ra8 {[%emt 0:00:15]} 13. O-O {[%emt 0:04:31]} Bd7 {[%emt 0:03:41][%csl Of8] Black has a bad bishop} 14. Qb3 {[%emt 0:15:39]} b5 {[%emt 0:16:23]} (14... e6 15. Qxb7 Rb8 16. Qxa6 Nb4) 15. a4 $18 {[%emt 0:03:13]} Na5 {[%emt 0:07:56]} 16. Qd1 {[%emt 0:07:38][%cal Ra4b5]} Nc4 {[%emt 0:07:43]} (16... b4 {was worth a try.}) 17. axb5 axb5 {[%emt 0:07:14]} 18. Bxc4 {[%emt 0:10:20]} bxc4 {[%emt 0:00:24]} 19. Ne5 {[%emt 0:02:11]} e6 {[%emt 0:03:25] [#]} 20. Bb6 $2 {[%emt 0:15:10]} Rxa1 $16 {[%emt 0:05:49]} 21. Bxd8 {[%emt 0:00:06]} Rxd1 {[%emt 0:00:10]} 22. Rxd1 {[%emt 0:00:19]} Be7 {[%emt 0:01:40]} 23. Bb6 {[%cal Od1a1]} Bc8 {[%emt 0:02:54]} 24. Nc6 {[%emt 0:01:16] White has more active pieces. Excellent horsemanship.} Nd7 {[%emt 0:00:46] Wards off Bc5} 25. Nxe7 {[%emt 0:01:29]} (25. Ba5 $16) 25... Kxe7 {[%emt 0:03:07]} 26. Bc7 {[%emt 0:01:55]} Bb7 {[%emt 0:00:35]} 27. f3 {[%emt 0:00:57][%cal Bf2f3,Bf3f4,Bf4e5][%mdl 32]} Ra8 {[%emt 0:09:34]} 28. Kf2 {[%emt 0:00:28]} Ra6 {[%emt 0:00:33]} 29. e5 {[%emt 0:01:07]} ({Better is} 29. Nb5 $14) 29... f6 {[%emt 0:03:40]} 30. f4 {[%emt 0:01:17]} fxe5 {[%emt 0:06:49]} 31. fxe5 {[%emt 0:00:06]} Ke8 {[%emt 0:00:38]} 32. Ke3 {[%emt 0:03:13]} Rc6 {[%emt 0:04:18]} 33. Bd6 {[%emt 0:00:16]} Rb6 {[%emt 0:02:07] Dodges Nb5} (33... Kf7 $11 {feels stronger.}) 34. Rd2 {[%emt 0:00:05]} Rb3 {[%emt 0:00:15]} 35. Kd4 {[%emt 0:00:22]} Ba6 $1 {[%emt 0:00:08]} 36. Rf2 {[%emt 0:00:14]} Rb7 {[%emt 0:01:27]} 37. Ne4 {[%emt 0:00:57]} Rb3 {[%emt 0:01:14]} 38. Nc5 {[%emt 0:00:23] Wards off Rd3+} Nxc5 {[%emt 0:00:32]} 39. Kxc5 $11 {[%emt 0:00:09][%mdl 4096] Endgame Strongly threatening Kc6. KRB-KRB} c3 $2 {[%emt 0:00:51][%mdl 8192] [#]} (39... Kd7 $11) 40. bxc3 $2 {[%emt 0:00:14]} (40. Kc6 $1 $18 {[%csl Gd6][%cal Rf2f8]} Rb6+ 41. Kxb6) 40... Rxc3+ $14 {[%emt 0:00:05]} 41. Kb6 {[%emt 0:00:06]} Bd3 {[%emt 0:02:52]} 42. Rf8+ {[%emt 0:00:08]} Kd7 {[%emt 0:00:01]} 43. Rf7+ {[%emt 0:00:12]} Kd8 {[%emt 0:00:01]} 44. Rxg7 {[%emt 0:01:25]} Rc2 {[%emt 0:00:02]} 45. Bc5 {[%emt 0:01:04]} Be4 {[%emt 0:00:07]} 46. Rg8+ {[%emt 0:01:25]} Kd7 {[%emt 0:00:02] The position is equal.} 47. Rg7+ {[%emt 0:00:33]} Kd8 {[%emt 0:00:02]} 48. Rg8+ {[%emt 0:00:06]} Kd7 {[%emt 0:00:07] Weighted Error Value: White=0.39/Black=0.39  Loses game:     	---       	Black=1      Missed win:     	White=2     	---        Mistake:       	White=2     	Black=4      Inaccurate:     	---       	Black=2      OK:         	White=12    	Black=17     Best:        	White=5     	Black=2      Strong:       	---       	Black=1      Brilliant:      	White=1     	---} 1/2-1/2

[Event "Budapest One Week IM-A 03-2025"]
[Site "Budapest"]
[Date "2025.03.19"]
[Round "5.2"]
[White "Nakahara, Kan"]
[Black "Rydstrom, Tom"]
[Result "0-1"]
[Annotator "TA"]
[ECO "C92"]
[WhiteElo "2113"]
[BlackElo "2301"]
[PlyCount "96"]
[EventDate "2025.03.17"]
[EventType "tourn"]
[EventCountry "HUN"]
[SourceTitle "playchess.com"]
[Source "ChessBase"]
[SourceQuality "1"]
[TimeControl "5400+30"]

{[%evp 21,92,8,50,7,45,45,41,33,51,6,46,5,12,7,92,78,104,59,74,0,0,-26,0,-60,0,-54,-60,-99,0,-185,-200,-315,-220,-216,-215,-453,-445,-447,-459,-445,-445,-441,-437,-387,-248,-220,-256,-554,-169,-184,-158,-220,-220,-220,-221,-250,-235,-354,-268,-270,-270,-279,-268,-262,-233,-267,-251,-259,-244,-854,-909,-872,-851]} 1. e4 {[%emt 0:00:02]} e5 {[%emt 0:05:02]} 2. Nf3 {[%emt 0:00:05]} Nc6 {[%emt 0:00:03]} 3. Bb5 {[%emt 0:00:09]} a6 {[%emt 0:00:05]} 4. Ba4 {[%emt 0:00:05]} Nf6 {[%emt 0:00:19]} 5. O-O {[%emt 0:00:16]} Be7 {[%emt 0:00:37]} 6. Re1 {[%emt 0:01:04]} b5 {[%emt 0:00:26]} 7. Bb3 {[%emt 0:00:01]} d6 {[%emt 0:00:11]} 8. c3 {[%emt 0:02:18]} O-O {[%emt 0:00:07]} 9. h3 {[%emt 0:00:08]} Nd7 {[%emt 0:00:22]} 10. a4 {[%emt 0:03:21]} Bb7 {[%emt 0:00:29]} 11. d4 {[%emt 0:02:42][%cal Bd2d4,Bd4d5][%mdl 32]} Bf6 {[%emt 0:00:10]} 12. a5 {[%emt 0:04:18] C92: Closed Ruy Lopez: 9...Be6, Karpov and Flohr-Zaitsev Variations.} Re8 {[%emt 0:05:54]} 13. d5 {[%emt 0:19:16]} Ne7 {[%emt 0:00:08]} 14. Ba2 {[%emt 0:06:43] White is slightly better.} g6 $146 {[%emt 0:01:11]} (14... Nf8 15. Nh2 Neg6 16. Ng4 Bg5 17. Bxg5 Qxg5 18. Nd2 Bc8 19. Re3 h5 20. Nf3 Qe7 {½-½ Byron,A (2196)-Sachdev,T (2398) Gibraltar Masters 8th 2010 (6)}) 15. Bg5 {[%emt 0:02:14]} Bg7 {[%emt 0:04:56]} 16. Qd2 {[%emt 0:02:23]} f6 $1 {[%emt 0:08:41]} 17. Bh6 {[%emt 0:01:05]} g5 {[%emt 0:06:54]} (17... f5 $11) 18. Bxg7 $16 {[%emt 0:00:26]} Kxg7 {[%emt 0:00:01]} 19. Na3 {[%emt 0:01:40]} Nf8 {[%emt 0:05:05][%cal Bd7f8,Bf8g6,Bg6f4][%mdl 32]} 20. h4 {[%emt 0:05:42]} (20. c4 $16) 20... gxh4 $1 $11 {[%emt 0:12:25]} 21. Nxh4 {[%emt 0:00:16]} Nfg6 {[%emt 0:00:15]} 22. Nf3 {[%emt 0:07:23]} (22. Nxg6 $11 hxg6 23. c4) 22... Kh8 {[%emt 0:03:08]} (22... Rg8 $15 23. c4 Qd7) 23. Kf1 {[%emt 0:06:42]} (23. c4 Nf4 24. cxb5 Qd7 $17) ({Better is} 23. Qh6 $11) 23... Rg8 {[%emt 0:00:50]} 24. Nc2 {[%emt 0:02:31]} Qd7 {[%emt 0:00:26]} (24... Qf8 $1 $17 {and ...f5 would now be decisive} 25. g3 f5) 25. Ne3 {[%emt 0:11:33] [#] White is on the road to losing.} (25. Qh6 $11) 25... Nf4 $1 $19 {[%emt 0:03:37][%cal Og8g2]} 26. Nh4 {[%emt 0:00:53]} (26. Ng1 $142) 26... Rg5 {[%emt 0:02:40]} 27. f3 {[%emt 0:06:56] [#]} Rh5 $1 {[%emt 0:03:23]} 28. Nhf5 {[%emt 0:02:27]} (28. Qf2 Nd3 29. Qg3) 28... Nxf5 {[%emt 0:02:00]} 29. exf5 {[%emt 0:00:29]} Rg8 {[%emt 0:04:24]} 30. Kf2 {[%emt 0:01:22]} Rh2 {[%emt 0:08:40]} 31. Rg1 {[%emt 0:00:23]} Nh3+ {[%emt 0:01:10]} 32. Ke2 {[%emt 0:00:02]} Nxg1+ {[%emt 0:00:06]} 33. Rxg1 {[%emt 0:00:05]} Qg7 {[%emt 0:00:37]} 34. Bb1 $2 {[%emt 0:01:35]} (34. Qd1) 34... Qg3 $2 {[%emt 0:03:51]} (34... Rxg2+ 35. Rxg2 Qxg2+ 36. Nxg2 Rxg2+ 37. Ke3 Rxd2 38. Kxd2 Bxd5) 35. Be4 {[%emt 0:01:10]} Qh4 {[%emt 0:07:14]} 36. Kd3 {[%emt 0:01:02]} (36. b3 $17 {was called for.}) 36... Rh1 {[%emt 0:02:51]} 37. Rxh1 {[%emt 0:00:53]} Qxh1 {[%emt 0:00:02]} 38. Ng4 {[%emt 0:00:38]} Bc8 {[%emt 0:02:36]} 39. Qf2 {[%emt 0:02:00]} (39. b4 $142) 39... Qd1+ {[%emt 0:01:33]} 40. Ke3 {[%emt 0:00:17]} Qc1+ {[%emt 0:00:55]} 41. Kd3 {[%emt 0:00:05]} Qg5 {[%emt 0:00:46]} 42. Ne3 {[%emt 0:00:10]} Qg3 {[%emt 0:00:37]} 43. Qg1 {[%emt 0:00:44]} Bd7 {[%emt 0:00:22]} 44. Qh1 {[%emt 0:00:31]} Be8 {[%emt 0:00:36]} 45. Ng4 $2 {[%emt 0:00:28]} (45. Qh6 Qg5 46. Qxg5 Rxg5 47. Ke2) 45... Rxg4 {[%emt 0:00:33]} 46. Qh6 {[%emt 0:00:05]} Rg8 {[%emt 0:01:00]} (46... Qxg2 47. fxg4 Qg3+ (47... Qxg4 48. Qf8+ Qg8 49. Qxf6+ Qg7 50. Qd8 $14) 48. Kd2 Qf2+ (48... Qxg4 49. Qf8+ Qg8 50. Qxf6+ Qg7 51. Qd8 $16) 49. Kd3 Qf1+ (49... Qxb2 50. Qf8#) 50. Kd2 $11) 47. Qxf6+ {[%emt 0:00:11]} Qg7 {[%emt 0:00:03]} 48. Qh4 {[%emt 0:00:04]} Qg5 {[%emt 0:01:08] Weighted Error Value: White=0.60/Black=0.36  Loses game:     	White=1     	---        Mistake:       	White=9     	Black=4      Inaccurate:     	White=5     	Black=5      OK:         	White=9     	Black=9      Best:        	White=3     	Black=3      Strong:       	---       	Black=3} 0-1

[Event "Budapest One Week IM-A 03-2025"]
[Site "Budapest"]
[Date "2025.03.19"]
[Round "5.3"]
[White "Krizsany, Laszlo"]
[Black "Horvath, David"]
[Result "1/2-1/2"]
[Annotator "NA RC"]
[ECO "E67"]
[WhiteElo "2287"]
[BlackElo "2279"]
[PlyCount "22"]
[EventDate "2025.03.17"]
[EventType "tourn"]
[EventCountry "HUN"]
[SourceTitle "playchess.com"]
[Source "ChessBase"]
[SourceQuality "1"]
[TimeControl "5400+30"]

1. d4 Nf6 2. c4 g6 3. Nf3 Bg7 4. g3 O-O 5. Bg2 d6 6. Nc3 Bf5 7. Nh4 Bc8 8. Nf3 Bf5 9. Nh4 Bc8 10. Nf3 Nbd7 11. O-O e5 1/2-1/2

[Event "Budapest One Week IM-A 03-2025"]
[Site "Budapest"]
[Date "2025.03.19"]
[Round "5.4"]
[White "Chakrabarty, Reyaansh"]
[Black "Foldes, Marton Gabor"]
[Result "1/2-1/2"]
[Annotator "TA"]
[ECO "B40"]
[WhiteElo "2181"]
[BlackElo "2332"]
[PlyCount "113"]
[EventDate "2025.03.17"]
[EventType "tourn"]
[EventCountry "HUN"]
[SourceTitle "playchess.com"]
[Source "ChessBase"]
[SourceQuality "1"]
[TimeControl "5400+30"]

{[%evp 27,113,7,6,16,15,20,28,12,15,0,33,0,0,0,0,0,0,0,16,-23,-24,-1,-9,0,22,29,47,31,35,-23,-16,-17,-20,-14,-3,-10,0,0,0,0,0,-8,0,0,0,-13,0,-8,-4,-4,-4,-4,-4,-4,-4,-4,-4,-4,0,0,0,0,0,0,0,0,0,0,0,0,12,0,12,12,12,8,12,0,0,0,0,0,0,0,0,0,0,0]} 1. e4 {[%emt 0:04:45]} c5 {[%emt 0:00:05]} 2. Nf3 {[%emt 0:00:05]} e6 {[%emt 0:00:08]} 3. d4 cxd4 {[%emt 0:00:05]} 4. Nxd4 {[%emt 0:00:07]} Nf6 {[%emt 0:00:27]} 5. Nc3 {[%emt 0:00:05]} Nc6 {[%emt 0:00:11]} 6. Nxc6 bxc6 {[%emt 0:00:10]} 7. e5 {[%emt 0:00:02]} Nd5 {[%emt 0:00:06]} 8. Ne4 {[%emt 0:00:03]} Qc7 {[%emt 0:01:08]} 9. f4 {[%emt 0:00:06]} Qb6 {[%emt 0:00:04]} 10. c4 {[%emt 0:00:02]} Bb4+ {[%emt 0:00:08]} 11. Ke2 {[%emt 0:00:06][%cal Be1e2,Be2f3,Bf3g3][%mdl 32]} f5 {[%emt 0:00:07]} 12. Nf2 {[%emt 0:00:07]} Ba6 {[%emt 0:00:09]} 13. Kf3 {[%emt 0:00:05]} Ne7 {[%emt 0:00:05]} 14. Be3 {[%emt 0:00:02]} Bc5 $1 {[%emt 0:00:04]} 15. Bxc5 {[%emt 0:00:01] B45: Sicilian Four Knights.} Qxc5 {[%emt 0:00:01]} 16. Qd6 {[%emt 0:00:01]} Qa5 {[%emt 0:00:15][%cal Og7g5] A sharp opening} 17. h4 {[%emt 0:09:00] White has an edge.} Rd8 {[%emt 0:00:32]} 18. Kg3 {[%emt 0:23:43]} c5 {[%emt 0:00:07]} 19. Nd3 {[%emt 0:06:58]} Rc8 {[%emt 0:07:55][%cal Bd8c8,Bc8c6,Bc6b6][%mdl 32]} 20. Ne1 $146 {[%emt 0:06:22]} (20. Nf2 Kf7 21. Be2 Rhd8 22. Bh5+ g6 23. Bf3 h6 24. b3 Rc6 25. Qd3 d5 26. exd6 Rcxd6 {0-1 Firat,B (2466)-Tari,A (2639) Titled Tuesday intern op 11th May blitz 2021 (10)}) 20... Rc6 {[%emt 0:21:01]} 21. Qd1 {[%emt 0:02:32]} Rb6 {[%emt 0:12:03]} 22. b3 {[%emt 0:01:29]} Qc3+ {[%emt 0:05:22]} 23. Nf3 {[%emt 0:08:08]} Bb7 {[%emt 0:03:14]} 24. Be2 {[%emt 0:00:31]} Nc6 {[%emt 0:17:05][%cal Be7c6,Bc6b4,Bb4a2,Ba2c3][%mdl 32]} 25. Rc1 {[%emt 0:07:11]} Qa5 {[%emt 0:07:38]} 26. Rc2 {[%emt 0:01:42]} Bc8 {[%emt 0:07:50]} 27. h5 {[%emt 0:03:06]} Nb4 {[%emt 0:04:40][%csl LRa2,LRc2]} 28. Rd2 {[%emt 0:00:23]} ({Better is} 28. Qd2 $14) 28... Nxa2 $11 {[%emt 0:03:31]} 29. Qa1 {[%emt 0:03:10] The position is equal. Prevents Nc3.} Ra6 $1 {[%emt 0:00:10]} 30. Rd6 {[%emt 0:00:34]} Nc3 {[%emt 0:06:51]} (30... Bb7 {simplifies} 31. Rxa6 Qxa6 32. Kf2 Rg8) 31. Rxa6 $1 {[%emt 0:00:05]} Ne4+ {[%emt 0:00:38]} 32. Kh2 {[%emt 0:01:04]} Qxa6 {[%emt 0:00:00]} 33. Qxa6 {[%emt 0:00:01]} Bxa6 {[%emt 0:00:01]} 34. Ra1 $132 {[%emt 0:00:01][%mdl 2048] White is fighting back} Bb7 {[%emt 0:00:39]} 35. Rxa7 {[%emt 0:00:02]} Bc6 {[%emt 0:00:01]} 36. Ng5 {[%emt 0:03:14]} Nd2 {[%emt 0:05:06]} 37. Bf3 {[%emt 0:04:50]} Nxf3+ {[%emt 0:00:05]} 38. Nxf3 {[%emt 0:00:04][%mdl 4096] Endgame KRB-KRN} ({Much weaker is} 38. gxf3 h6 39. Nh3 (39. Rc7 $2 Ke7 $19) 39... Bxf3 $15) 38... Ke7 {[%emt 0:00:12]} 39. Ra5 {[%emt 0:00:07]} Rb8 {[%emt 0:00:52]} 40. Rxc5 {[%emt 0:00:05]} Bxf3 {[%emt 0:01:11]} 41. gxf3 {[%emt 0:00:06]} Rxb3 {[%emt 0:00:01] KR-KR} 42. Kg2 {[%emt 0:00:43]} Rb7 {[%emt 0:00:37]} 43. Rc8 {[%emt 0:00:18]} d6 {[%emt 0:00:51]} 44. exd6+ {[%emt 0:00:46]} Kxd6 {[%emt 0:00:17]} 45. c5+ {[%emt 0:00:18]} Kd7 {[%emt 0:00:27]} 46. Rg8 {[%emt 0:00:09]} Kc6 {[%emt 0:00:17]} 47. Re8 {[%emt 0:01:39]} Kxc5 {[%emt 0:00:59]} 48. Rxe6 {[%emt 0:00:06]} Rf7 {[%emt 0:00:15]} 49. h6 {[%emt 0:01:27]} gxh6 {[%emt 0:00:33]} 50. Rxh6 {[%emt 0:00:06]} Kd5 {[%emt 0:00:38]} 51. Ra6 {[%emt 0:00:48]} Rg7+ {[%emt 0:00:27]} 52. Kh3 {[%emt 0:00:22]} Rg6 {[%emt 0:00:14]} 53. Rxg6 {[%emt 0:05:14]} hxg6 {[%emt 0:00:01]} 54. Kh4 {[%emt 0:00:06] [#] Kg5 would kill now.} Ke6 {[%emt 0:00:36]} (54... Kd4 $5) 55. Kg5 {[%emt 0:00:08]} Kf7 {[%emt 0:00:00]} 56. Kh4 $1 {[%emt 0:00:08]} Kf6 {[%emt 0:00:18]} 57. Kg3 {[%emt 0:00:07] Weighted Error Value: White=0.07 (flawless) /Black=0.05 (flawless)   Mistake:       	White=1     	---        Inaccurate:     	White=2     	Black=1      OK:         	White=22    	Black=17     Best:        	White=2     	Black=4      Strong:       	White=2     	Black=1} 1/2-1/2

[Event "Budapest One Week IM-A 03-2025"]
[Site "Budapest"]
[Date "2025.03.19"]
[Round "5.5"]
[White "Singh, Siddharth"]
[Black "Ratsma, Midas"]
[Result "1/2-1/2"]
[Annotator "NA RC"]
[ECO "C50"]
[WhiteElo "2239"]
[BlackElo "2268"]
[PlyCount "83"]
[EventDate "2025.03.17"]
[EventType "tourn"]
[EventCountry "HUN"]
[SourceTitle "playchess.com"]
[Source "ChessBase"]
[SourceQuality "1"]
[TimeControl "5400+30"]

1. e4 {[%emt 0:00:04]} e5 {[%emt 0:00:08]} 2. Nf3 {[%emt 0:00:07]} Nc6 {[%emt 0:00:05]} 3. Bc4 {[%emt 0:00:05]} Nf6 {[%emt 0:00:53]} 4. d3 {[%emt 0:00:08]} Bc5 {[%emt 0:01:06]} 5. c3 {[%emt 0:00:08]} O-O {[%emt 0:00:16]} 6. O-O {[%emt 0:00:06]} d5 {[%emt 0:01:06]} 7. exd5 Nxd5 {[%emt 0:00:07]} 8. Re1 {[%emt 0:00:44]} Bg4 {[%emt 0:00:16]} 9. Nbd2 {[%emt 0:00:08]} Nb6 {[%emt 0:01:33]} 10. h3 {[%emt 0:00:09]} Bh5 {[%emt 0:01:42]} 11. Bb3 {[%emt 0:00:24]} a5 {[%emt 0:02:01]} 12. Ne4 {[%emt 0:00:24]} a4 {[%emt 0:01:47]} 13. Bc2 {[%emt 0:00:05]} Ra5 {[%emt 0:01:23]} 14. Bg5 {[%emt 0:00:05]} Be7 {[%emt 0:00:55]} 15. Bxe7 {[%emt 0:00:08]} Nxe7 {[%emt 0:04:21]} 16. Ng3 {[%emt 0:05:43]} Bxf3 {[%emt 0:00:16]} 17. Qxf3 {[%emt 0:00:05]} Nc6 {[%emt 0:05:18]} 18. Rad1 {[%emt 0:07:59]} Qd5 {[%emt 0:06:30]} 19. Qxd5 {[%emt 0:28:20]} Rxd5 {[%emt 0:00:29]} 20. b4 {[%emt 0:01:02]} axb3 {[%emt 0:02:20]} 21. Bxb3 {[%emt 0:00:28]} Ra5 {[%emt 0:04:43]} 22. d4 {[%emt 0:05:03]} Rd8 {[%emt 0:09:58]} 23. Ne4 {[%emt 0:10:51]} exd4 {[%emt 0:08:41]} 24. cxd4 {[%emt 0:00:06]} Rxd4 {[%emt 0:03:46]} 25. Rxd4 {[%emt 0:00:19]} Nxd4 {[%emt 0:00:12]} 26. Nd6 {[%emt 0:00:03]} Ra8 {[%emt 0:12:18]} 27. Nxb7 {[%emt 0:00:35]} Kf8 {[%emt 0:05:12]} 28. Re4 {[%emt 0:00:55]} Nxb3 {[%emt 0:00:47]} 29. axb3 {[%emt 0:00:03]} Ra1+ {[%emt 0:03:29]} 30. Kh2 {[%emt 0:00:03]} Rc1 {[%emt 0:00:58]} 31. b4 {[%emt 0:01:48]} Rc4 {[%emt 0:09:16]} 32. Rxc4 {[%emt 0:06:30]} Nxc4 {[%emt 0:00:10]} 33. Kg3 {[%emt 0:00:03]} Ke7 {[%emt 0:00:10]} 34. Kf4 {[%emt 0:00:04]} Nb2 {[%emt 0:07:49]} 35. Ke4 {[%emt 0:02:40]} Kd7 {[%emt 0:00:44]} 36. Na5 {[%emt 0:01:24]} Nd1 {[%emt 0:02:12]} 37. f3 {[%emt 0:00:16]} Nc3+ {[%emt 0:00:48]} 38. Kd4 {[%emt 0:00:37]} Ne2+ {[%emt 0:00:30]} 39. Ke3 {[%emt 0:00:19]} Nc3 {[%emt 0:00:17]} 40. Kd4 {[%emt 0:00:19]} Ne2+ {[%emt 0:00:20]} 41. Ke3 {[%emt 0:00:34]} Nc3 {[%emt 0:00:12]} 42. Kd4 {[%emt 0:00:09]} 1/2-1/2

[Event "Budapest One Week IM-A 03-2025"]
[Site "Budapest"]
[Date "2025.03.20"]
[Round "6.1"]
[White "Turzo, Attila"]
[Black "Ratsma, Midas"]
[Result "0-1"]
[Annotator "TA"]
[ECO "D37"]
[WhiteElo "2272"]
[BlackElo "2268"]
[PlyCount "108"]
[EventDate "2025.03.17"]
[EventType "tourn"]
[EventCountry "HUN"]
[SourceTitle "playchess.com"]
[Source "ChessBase"]
[SourceQuality "1"]
[TimeControl "5400+30"]

{[%evp 18,108,29,21,22,22,30,12,17,11,19,0,22,22,22,21,24,9,29,0,31,-4,0,0,0,0,0,0,0,0,0,0,0,0,0,0,0,9,10,8,12,0,0,0,0,0,0,-32,-39,-28,-44,-84,-86,-76,-82,-61,-75,-79,-88,-92,-75,-91,-89,-79,-80,-233,-175,-161,-166,-182,-153,-178,-162,-194,-184,-192,-193,-176,-8,-8,-8,-8,-8,-8,-8,-8,-21,-36,-8,-8,-8,-241,-233]} 1. d4 {[%emt 0:00:05]} d5 {[%emt 0:00:07]} 2. c4 {[%emt 0:00:09]} e6 {[%emt 0:00:07]} 3. Nf3 {[%emt 0:00:07]} Nf6 {[%emt 0:00:06]} 4. Nc3 {[%emt 0:00:06]} Be7 {[%emt 0:00:06]} 5. Bf4 {[%emt 0:00:08]} O-O {[%emt 0:00:08]} 6. e3 {[%emt 0:00:04]} c5 {[%emt 0:00:06]} 7. dxc5 {[%emt 0:02:11]} Bxc5 {[%emt 0:00:06]} 8. cxd5 {[%emt 0:00:09]} Nxd5 {[%emt 0:02:15]} 9. Nxd5 {[%emt 0:00:11]} exd5 {[%emt 0:00:05]} 10. Bd3 {[%emt 0:06:35][%cal Od3h7]} Bb4+ {[%emt 0:01:57] D37: Queen's Gambit Declined: 5 Bf4.} 11. Nd2 {[%emt 0:01:00][%cal Bf3d2,Bd2b3,Bb3c5][%mdl 32]} Qf6 {[%emt 0:08:51]} 12. Qc2 $146 {[%emt 0:09:01]} (12. Rb1 Bf5 13. Bxf5 Qxf5 14. O-O Nc6 15. Nf3 Rfd8 16. Nd4 Nxd4 17. Qxd4 Ba5 18. Rfd1 {½-½ Keymer,V (2693)-Carlsen,M (2861) Julius Baer GenCup KO rapid 2022 (2.12)}) 12... h6 {[%emt 0:04:41] A sharp opening. The position is equal.} 13. O-O {[%emt 0:04:22]} Nc6 {[%emt 0:01:11]} 14. Rac1 {[%emt 0:14:05]} Be6 {[%emt 0:06:57]} 15. a3 {[%emt 0:02:07]} Ba5 {[%emt 0:01:01][%cal Oc6d4]} 16. Nb3 {[%emt 0:08:58]} Bb6 {[%emt 0:07:53]} 17. Nc5 {[%emt 0:00:15]} Rac8 {[%emt 0:02:34]} 18. Qd2 {[%emt 0:07:16]} (18. Nxb7 $2 Na5 19. Qe2 (19. Bh7+ $2 Kh8 $19) 19... Nxb7 $19) 18... Na5 {[%emt 0:10:24]} 19. Qb4 {[%emt 0:00:20]} Bf5 {[%emt 0:10:57]} 20. Bxf5 {[%emt 0:03:18]} Qxf5 {[%emt 0:00:05]} 21. Na4 {[%emt 0:01:10]} Rxc1 {[%emt 0:21:06]} 22. Rxc1 {[%emt 0:00:12]} Rc8 {[%emt 0:00:37]} 23. Rxc8+ {[%emt 0:03:38]} Qxc8 {[%emt 0:00:07]} 24. h3 {[%emt 0:00:36]} (24. Nxb6 $2 Qc1+) 24... Qc1+ {[%emt 0:03:21]} 25. Kh2 {[%emt 0:01:06]} Bc7 {[%emt 0:03:53]} 26. Bg3 {[%emt 0:10:48]} Qc6 {[%emt 0:03:42]} 27. Nc3 {[%emt 0:01:47]} Bxg3+ {[%emt 0:02:40]} 28. Kxg3 $11 {[%emt 0:00:03][%mdl 4096] Endgame KQN-KQN} Nc4 {[%emt 0:00:33]} 29. Qe7 {[%emt 0:03:51]} Nxb2 {[%emt 0:02:37]} 30. Qd8+ {[%emt 0:00:13]} Kh7 {[%emt 0:00:05]} 31. Nxd5 {[%emt 0:00:08] And now Ne7 would win.} Nc4 {[%emt 0:01:10]} 32. Ne7 {[%emt 0:02:34][%csl Ge7][%cal Rd8g8]} Qd6+ {[%emt 0:00:12]} 33. Qxd6 {[%emt 0:00:06]} Nxd6 $15 {[%emt 0:00:03] KN-KN} 34. Kf4 {[%emt 0:00:11]} Nc4 {[%emt 0:01:15]} 35. a4 {[%emt 0:00:20]} Nb6 {[%emt 0:01:28] Wards off Nc8} 36. a5 {[%emt 0:10:33]} Nc4 {[%emt 0:00:04]} 37. a6 {[%emt 0:00:12]} bxa6 {[%emt 0:00:26]} 38. Ke4 {[%emt 0:00:14]} a5 {[%emt 0:01:33]} 39. Kd3 {[%emt 0:04:39]} Ne5+ {[%emt 0:00:37]} 40. Kc3 {[%emt 0:00:39]} g5 {[%emt 0:00:30]} 41. g3 $2 {[%emt 0:01:41]} (41. Nd5 $17 {was worth a try.}) 41... Nf3 {[%emt 0:01:55]} 42. Nc6 {[%emt 0:00:19]} h5 {[%emt 0:00:39]} 43. Nxa5 {[%emt 0:00:49] [#]} Ng1 $1 {[%emt 0:00:54]} 44. h4 {[%emt 0:02:20] [#]} gxh4 {[%emt 0:00:23]} 45. gxh4 {[%emt 0:00:01]} Nf3 {[%emt 0:00:06]} 46. Kd3 {[%emt 0:00:10]} f5 {[%emt 0:02:04]} (46... Nxh4 47. Ke4 $17) 47. e4 {[%emt 0:03:38]} f4 {[%emt 0:00:06]} (47... Nxh4 $19 {...f4 would now be deadly.} 48. Nc6 fxe4+ 49. Kxe4 a6) 48. Nc6 $11 {[%emt 0:01:06]} a6 {[%emt 0:00:27]} 49. Nb4 {[%emt 0:00:37]} a5 {[%emt 0:01:12]} 50. Nd5 {[%emt 0:00:02]} Ne5+ {[%emt 0:00:50]} 51. Kd4 {[%emt 0:00:14]} Ng6 {[%emt 0:00:29]} 52. e5 {[%emt 0:01:20]} f3 {[%emt 0:00:37]} 53. Nf6+ {[%emt 0:00:40]} Kh6 {[%emt 0:00:23]} 54. e6 $2 {[%emt 0:00:33]} (54. Ng8+ $1 $11 {and White stays safe.} Kg7 55. Nf6) 54... Nxh4 {[%emt 0:00:22] Weighted Error Value: White=0.15 (very precise) /Black=0.11 (very precise)   Loses game:     	White=1     	---        Missed win:     	---       	Black=1      Mistake:       	White=1     	---        Inaccurate:     	White=4     	Black=2      OK:         	White=19    	Black=23     Best:        	White=5     	Black=6} 0-1